bitfinex/quotes_SOLUSD_20240906
["timestamp","ask_amount","ask_price","bid_price","bid_amount"]
[1725656828402,20.3633,122.77,122.66,20.381]
[1725656828403,8.1486,122.72,122.66,28.533]
[1725656828600,20.3633,122.77,122.66,20.381]
[1725656828905,8.1433,122.8,122.74,8.1472]
[1725656829114,82.5114,122.9,122.73,20.3683]
[1725656829301,1.15658355,122.89,122.68,123.08620054]
[1725656829500,40.6932,122.88,122.77,8.1451]
[1725656829699,40.6932,122.88,122.78,8.1445]
[1725656829700,61.0383,122.88,122.78,8.1445]
[1725656830006,1.15658355,122.87,122.77,8.1452]
[1725656830206,20.3501,122.85,122.73,12.5623]
[1725656830407,1.15658355,122.84,122.73,12.5623]
[1725656830727,50.0,122.83,122.68,52.9558]
[1725656830924,8.1488,122.72,122.68,32.578]
[1725656831121,8.1488,122.72,122.63,40.7729]
[1725656831122,50.0,122.79,122.61,32.578]
[1725656831305,8.1508,122.69,122.64,8.1539]
[1725656831504,20.3707,122.73,122.61,32.578]
[1725656831726,46.15658355,122.72,122.63,8.1539]
[1725656832110,8.1512,122.69,122.63,8.1539]
[1725656832410,21.52728355,122.73,122.61,52.9662]
[1725656832727,46.15658355,122.72,122.61,54.59569723]
[1725656833029,8.1519,122.67,122.61,40.7338]
[1725656833222,20.3751,122.7,122.61,40.7338]
[1725656833223,45.0,122.72,122.61,52.9676]
[1725656833407,21.53018355,122.71,122.61,32.578]
[1725656833728,1.15658355,122.7,122.61,32.578]
[1725656833902,66.15658355,122.7,122.61,32.578]
[1725656834099,8.1526,122.66,122.61,32.578]
[1725656834303,45.0,122.65,122.61,32.578]
[1725656834915,8.152,122.67,122.61,32.578]
[1725656835267,8.1487,122.72,122.65,8.1526]
[1725656835429,1.15658355,122.75,122.66,28.5336]
[1725656835615,8.1472,122.75,122.69,8.1506]
[1725656835814,8.1472,122.75,122.66,20.3811]
[1725656835815,8.1482,122.73,122.67,8.1519]
[1725656836327,8.1472,122.75,122.66,20.3811]
[1725656836502,20.3596,122.8,122.69,20.3764]
[1725656836705,8.1462,122.76,122.69,20.3764]
[1725656837127,21.51618355,122.8,122.69,20.3764]
[1725656837334,8.1466,122.76,122.7,8.1498]
[1725656837908,1.15658355,122.79,122.69,20.3764]
[1725656838117,8.1493,122.71,122.65,8.153]
[1725656838325,8.1493,122.71,122.64,20.3837]
[1725656838522,1.15658355,122.75,122.66,8.1525]
[1725656838807,8.1487,122.72,122.66,8.1525]
[1725656839023,50.0,122.81,122.67,8.1513]
[1725656839224,65.0,122.8,122.67,1.15856319]
[1725656839426,65.0,122.8,122.69,20.3765]
[1725656839427,20.0,122.8,122.69,20.3765]
[1725656839725,45.0,122.79,122.68,8.1512]
[1725656840102,20.0,122.78,122.68,8.1512]
[1725656840302,20.0,122.78,122.67,20.3787]
[1725656840303,45.0,122.77,122.67,20.3787]
[1725656840514,50.0,122.76,122.61,32.578]
[1725656840811,8.1534,122.65,122.59,12.5623]
[1725656841111,20.376,122.7,122.57,61.1863]
[1725656841112,8.1539,122.64,122.58,8.1578]
[1725656841313,62.1402,122.74,122.57,20.3949]
[1725656841314,8.156,122.61,122.57,20.3949]
[1725656841526,8.156,122.61,122.55,32.0754]
[1725656841527,45.0,122.63,122.55,32.0754]
[1725656841712,53.1552,122.63,122.57,8.1585]
[1725656841912,53.1552,122.63,122.56,20.397]
[1725656842217,20.377,122.69,122.55,32.0754]
[1725656842522,10.0,122.75,122.55,32.0754]
[1725656842523,20.3719,122.72,122.62,8.1551]
[1725656842727,8.1514,122.68,122.62,8.1551]
[1725656843032,379.9,122.77,122.56,41.64754217]
[1725656843033,8.148,122.73,122.57,0.85381172]
[1725656843232,62.1402,122.81,122.57,0.85381172]
[1725656843233,50.0,122.79,122.66,20.381]
[1725656843534,8.148,122.73,122.68,8.1509]
[1725656843828,62.1402,122.81,122.68,20.3768]
[1725656844033,62.1402,122.81,122.66,8.1525]
[1725656844210,8.1506,122.69,122.61,20.3882]
[1725656844416,20.371,122.73,122.65,8.1531]
[1725656844615,8.1506,122.69,122.63,20.3854]
[1725656844925,8.1506,122.69,122.58,40.50820054]
[1725656844926,8.1483,122.73,122.67,8.1518]
[1725656845120,8.1483,122.73,122.6,81.29100054]
[1725656845121,20.3597,122.8,122.7,8.1498]
[1725656845310,33.1522,122.86,122.71,1.62943315]
[1725656845510,8.1427,122.81,122.71,1.62943315]
[1725656845744,8.1435,122.8,122.74,20.3669]
[1725656845911,8.1435,122.8,122.75,8.1463]
[1725656846111,20.3484,122.86,122.76,20.3636]
[1725656846316,30.5766,122.93,122.78,40.50820054]
[1725656846317,10.0,122.93,122.78,40.50820054]
[1725656846513,8.1374,122.89,122.83,8.1413]
[1725656846731,74.8810897,122.98,122.82,20.3538]
[1725656846732,8.138,122.88,122.82,28.4957]
[1725656847018,20.3387,122.92,122.79,30.7472]
[1725656847344,8.1401,122.85,122.79,8.1439]
[1725656848045,8.1407,122.84,122.78,28.5051]
[1725656848223,20.3437,122.89,122.72,30.7472]
[1725656848224,20.3437,122.89,122.72,71.4892]
[1725656848427,20.3437,122.89,122.74,20.3668]
[1725656848633,8.142,122.82,122.74,20.3668]
[1725656848832,50.0,122.9,122.72,38.8958]
[1725656848833,53.1433,122.81,122.72,38.8958]
[1725656849036,8.1433,122.81,122.72,30.7472]
[1725656849247,45.0,122.8,122.72,30.7472]
[1725656849447,33.2499,122.9,122.72,30.7472]
[1725656849739,20.3524,122.84,122.72,51.1173]
[1725656849928,20.0,122.83,122.72,51.1173]
[1725656850128,8.1454,122.77,122.72,30.7472]
[1725656850317,8.1445,122.79,122.72,30.7472]
[1725656850523,8.1449,122.78,122.72,38.8957]
[1725656850719,20.0,122.83,122.73,8.1477]
[1725656850929,40.6886,122.89,122.76,8.1458]
[1725656850930,8.1427,122.81,122.76,8.1458]
[1725656851126,20.3464,122.88,122.74,60.50820054]
[1725656851323,20.3401,122.91,122.79,20.3584]
[1725656851726,8.1396,122.86,122.81,8.1425]
[1725656851932,8.1413,122.83,122.76,20.3648]
[1725656852244,50.0,122.95,122.76,20.3648]
[1725656852245,8.1373,122.9,122.84,8.1404]
[1725656852421,8.1366,122.91,122.85,8.1399]
[1725656852624,8.1376,122.89,122.83,28.4935]
[1725656852836,8.1373,122.89,122.84,8.1405]
[1725656853046,8.1366,122.91,122.85,8.1396]
[1725656853221,0.0510897,122.98,122.85,8.1396]
[1725656853222,0.0510897,122.98,122.85,20.3486]
[1725656853621,8.1361,122.91,122.85,20.3486]
[1725656854044,8.1333,122.96,122.87,20.3451]
[1725656854249,8.1334,122.95,122.9,8.136]
[1725656854423,0.0510897,122.98,122.89,20.3418]
[1725656854630,8.1829897,122.98,122.92,28.4736]
[1725656854828,0.0510897,122.98,122.86,71.25540054]
[1725656855153,0.0510897,122.98,122.93,8.1345]
[1725656856149,8.1824897,122.98,122.92,20.3369]
[1725656856331,8.1825897,122.98,122.92,28.4717]
[1725656856722,8.1324,122.97,122.92,20.3369]
[1725656856947,8.1825897,122.98,122.92,28.4721]
[1725656857246,0.0510897,122.98,122.94,8.1336]
[1725656857422,0.0510897,122.98,122.93,8.1345]
[1725656857627,0.0510897,122.98,122.92,20.3369]
[1725656857844,0.0510897,122.98,122.88,28.4814]
[1725656858230,0.0510897,122.98,122.86,30.7472]
[1725656858231,8.1335,122.95,122.9,8.1364]
[1725656858434,0.0510897,122.98,122.91,8.1354]
[1725656858647,8.1327,122.96,122.91,8.1359]
[1725656859151,45.0,122.95,122.89,20.3418]
[1725656859348,0.0510897,122.98,122.89,20.3418]
[1725656859548,45.0510897,122.98,122.89,20.3418]
[1725656859746,45.0510897,122.98,122.86,30.7472]
[1725656859747,0.0510897,122.98,122.91,28.4745]
[1725656860058,0.0510897,122.98,122.86,71.25540054]
[1725656860059,8.1334,122.95,122.88,20.3446]
[1725656860245,0.0510897,122.98,122.88,20.3446]
[1725656860425,8.1352,122.93,122.88,20.3446]
[1725656860625,0.0510897,122.98,122.88,20.3446]
[1725656860849,0.0510897,122.98,122.86,30.7472]
[1725656861258,8.1372,122.9,122.83,13.276]
[1725656861458,8.1373,122.9,122.85,8.1393]
[1725656861629,45.0,122.89,122.84,20.3513]
[1725656861830,0.0510897,122.98,122.89,20.342]
[1725656862054,0.0510897,122.98,122.91,20.3386]
[1725656862431,0.0510897,122.98,122.95,8.1332]
[1725656862763,0.0510897,122.98,122.94,28.4687]
[1725656863127,0.0510897,122.98,122.91,20.3393]
[1725656863324,8.1321,122.97,122.93,8.1347]
[1725656863555,0.0510897,122.98,122.93,8.1347]
[1725656863935,8.1829897,122.98,122.93,8.1347]
[1725656864143,8.1322,122.97,122.92,8.1353]
[1725656864336,8.1326,122.97,122.92,8.1352]
[1725656864635,8.1825897,122.98,122.93,8.1346]
[1725656865147,45.0,122.97,122.93,8.1346]
[1725656865356,0.0510897,122.98,122.93,20.3356]
[1725656865653,0.0510897,122.98,122.96,8.1326]
[1725656865833,0.0510897,122.98,122.95,20.3322]
[1725656866345,0.0510897,122.98,122.95,28.465]
[1725656866648,0.0510897,122.98,122.97,8.132]
[1725656867535,0.0510897,122.98,122.97,9.7579898]
[1725656867726,0.0510897,122.98,122.97,50.4182898]
[1725656868033,0.0510897,122.98,122.97,70.4182898]
[1725656868435,1e-08,123.02,123.01,8.1294]
[1725656868839,1e-08,123.02,123.0,20.3243]
[1725656869070,1e-08,123.02,122.97,28.4612]
[1725656869246,1e-08,123.02,122.97,20.3292]
[1725656869965,1e-08,123.02,123.0,8.1294]
[1725656870167,1e-08,123.02,122.99,20.3258]
[1725656870366,8.1294,123.01,122.96,28.4634]
[1725656870553,8.1301,123.0,122.96,20.3312]
[1725656870755,8.1308,122.99,122.95,8.1332]
[1725656870955,8.1308,122.99,122.93,61.0062]
[1725656870956,8.1319,122.98,122.93,28.4703]
[1725656871150,8.1307,122.99,122.95,8.1333]
[1725656871350,45.0,122.98,122.95,8.1333]
[1725656871539,45.0,122.99,122.95,8.1333]
[1725656871738,45.0,122.99,122.88,81.19500054]
[1725656871739,45.0,122.99,122.88,8.1374]
[1725656872069,45.0,122.99,122.77,32.0565]
[1725656872070,20.0,122.98,122.77,32.0565]
[1725656872357,8.1387,122.87,122.82,8.1414]
[1725656872740,45.0,122.86,122.82,8.1414]
[1725656872941,45.0,122.86,122.81,20.3563]
[1725656873150,10.0,122.95,122.77,32.0565]
[1725656873151,40.6689,122.95,122.83,28.4924]
[1725656873461,20.34,122.92,122.8,20.3581]
[1725656873852,8.1379,122.89,122.83,8.141]
[1725656874051,45.0,122.91,122.83,8.141]
[1725656874052,53.1381,122.88,122.83,8.1413]
[1725656874266,45.0,122.87,122.84,8.1404]
[1725656874460,20.0,122.94,122.79,40.7175]
[1725656874663,45.0,122.93,122.82,8.1413]
[1725656874873,45.0,122.93,122.77,32.0565]
[1725656874874,70.0,122.92,122.8,20.3581]
[1725656875050,8.1393,122.87,122.8,28.5011]
[1725656875243,8.1393,122.87,122.76,12.093]
[1725656875244,8.1412,122.84,122.76,12.093]
[1725656875445,8.1412,122.84,122.78,8.1446]
[1725656875647,45.0,122.83,122.78,8.1446]
[1725656876363,40.6819,122.91,122.79,20.3599]
[1725656876546,20.0,122.92,122.79,20.3599]
[1725656876547,8.1393,122.87,122.8,8.1427]
[1725656876863,8.1384,122.88,122.81,20.3551]
[1725656877167,33.5035,122.93,122.84,8.1405]
[1725656877168,8.1367,122.9,122.84,8.1405]
[1725656877353,13.166,122.93,122.85,8.1399]
[1725656877769,8.1361,122.91,122.85,8.1399]
[1725656877943,8.1361,122.91,122.83,20.3518]
[1725656877944,8.136,122.92,122.86,8.1393]
[1725656878575,8.136,122.92,122.87,8.1383]
[1725656878941,40.6568,122.99,122.86,8.1387]
[1725656879142,40.6568,122.99,122.82,13.0537]
[1725656879143,20.3301,122.97,122.85,20.3497]
[1725656879362,20.3301,122.97,122.82,53.56190054]
[1725656879569,20.3301,122.97,122.83,20.0]
[1725656879768,8.1333,122.96,122.91,8.1358]
[1725656880070,8.1314,122.98,122.93,8.1346]
[1725656880567,8.1353,122.93,122.88,8.1379]
[1725656880769,20.328,122.99,122.87,20.3465]
[1725656881068,40.64540001,123.02,122.88,60.50820054]
[1725656881069,1e-08,123.02,122.88,60.50820054]
[1725656881275,8.1295,123.01,122.95,28.465]
[1725656881453,1e-08,123.02,122.97,20.3285]
[1725656881641,1e-08,123.02,122.88,110.50820054]
[1725656881642,1e-08,123.02,122.91,20.3399]
[1725656881847,1e-08,123.02,122.96,8.1327]
[1725656881848,8.1294,123.01,122.96,8.1327]
[1725656882154,8.1294,123.01,122.92,20.0]
[1725656882155,1e-08,123.02,122.97,8.1318]
[1725656882346,8.1307,122.99,122.92,8.1347]
[1725656882694,20.3303,122.97,122.85,8.1395]
[1725656882845,90.6581,122.98,122.84,28.4921]
[1725656883041,50.0,122.99,122.87,8.138]
[1725656883481,50.0,122.99,122.85,20.3483]
[1725656883482,8.1346,122.94,122.88,8.1379]
[1725656883645,45.0,122.93,122.89,8.1372]
[1725656883989,45.0,122.93,122.88,20.3449]
[1725656883990,45.0,122.93,122.88,28.4828]
[1725656884179,45.0,122.93,122.85,20.3499]
[1725656884396,20.0,122.92,122.79,42.7206301]
[1725656884602,45.0,122.91,122.9,8.1366]
[1725656884890,73.36980001,123.02,122.9,8.1366]
[1725656884891,1e-08,123.02,122.95,20.3327]
[1725656885185,1e-08,123.02,122.98,20.3282]
[1725656885479,1e-08,123.02,123.01,28.4529]
[1725656885882,1e-08,123.02,123.01,20.3235]
[1725656886178,1e-08,123.02,122.97,20.3293]
[1725656886595,8.12880001,123.02,122.97,28.4613]
[1725656886875,8.12900001,123.02,122.93,20.3352]
[1725656887182,1e-08,123.02,122.97,20.3298]
[1725656887363,8.12900001,123.02,122.97,20.3298]
[1725656887562,1e-08,123.02,122.97,28.4616]
[1725656887762,1e-08,123.02,122.97,20.3298]
[1725656887964,1e-08,123.02,122.94,8.1334]
[1725656888291,8.1328,122.96,122.9,8.136]
[1725656888449,20.3241,123.01,122.88,20.3434]
[1725656888654,1e-08,123.02,122.94,20.3344]
[1725656888858,1e-08,123.02,123.01,8.1294]
[1725656889081,1e-08,123.02,122.98,8.1313]
[1725656889451,1e-08,123.02,122.94,40.50820054]
[1725656889655,1e-08,123.02,123.01,8.1294]
[1725656889884,1e-08,123.02,123.01,28.1294]
[1725656890059,0.8363057,123.1,123.01,113.63760054]
[1725656890269,0.8363057,123.1,123.09,8.1241]
[1725656890579,0.8363057,123.1,123.09,28.1241]
[1725656891556,31.1563,123.25,123.16,8.119]
[1725656891557,8.1155,123.23,123.16,8.119]
[1725656891979,8.1155,123.23,123.17,8.1186]
[1725656892163,31.1563,123.25,123.17,8.1186]
[1725656892164,39.2704,123.25,123.17,8.1186]
[1725656892361,8.1145,123.24,123.17,8.1186]
[1725656892588,8.1134,123.26,123.19,8.1173]
[1725656892900,8.1163,123.21,123.15,20.2997]
[1725656893058,8.1173,123.2,123.11,20.3064]
[1725656893258,8.1181,123.19,123.11,28.4287]
[1725656893485,30.2851,123.25,123.11,20.3064]
[1725656893666,8.1202,123.15,123.07,20.3129]
[1725656893981,8.1206,123.15,123.07,28.4383]
[1725656894181,20.2945,123.19,123.01,12.5329]
[1725656894182,12.6503,123.2,123.12,8.122]
[1725656894357,8.1235,123.1,123.01,12.5329]
[1725656894562,20.2978,123.17,123.01,12.5329]
[1725656894763,8.1219,123.13,123.01,12.5329]
[1725656895068,45.0,123.16,123.04,20.3176]
[1725656895459,8.1202,123.15,123.07,20.3126]
[1725656895667,45.0,123.14,123.07,20.3126]
[1725656895869,45.0,123.14,123.1,8.1234]
[1725656896088,45.0,123.14,123.07,20.3126]
[1725656896304,45.0,123.14,123.01,12.5329]
[1725656896467,20.0,123.19,123.13,8.1209]
[1725656896468,8.1176,123.19,123.13,8.1209]
[1725656896996,12.6503,123.26,123.06,40.50820054]
[1725656896997,62.6503,123.26,123.12,20.3044]
[1725656897166,40.5767,123.23,123.03,40.6375]
[1725656897364,100.5767,123.23,123.08,20.3112]
[1725656897561,8.1208,123.14,123.08,20.3112]
[1725656898084,8.1208,123.14,122.99,40.6529]
[1725656898085,20.0,123.13,122.95,12.5329]
[1725656898289,20.3075,123.11,122.95,12.5329]
[1725656898502,8.1275,123.04,122.98,8.1307]
[1725656898786,8.1267,123.06,122.95,12.5329]
[1725656899009,45.0,123.05,122.95,12.5329]
[1725656899681,45.0,123.05,122.96,20.0]
[1725656900192,45.0,123.05,123.01,8.1291]
[1725656900492,20.0,123.13,123.02,20.3217]
[1725656900493,45.0,123.06,123.02,20.3217]
[1725656900691,8.1243,123.09,123.03,8.1279]
[1725656900861,43.8066,123.16,122.98,40.6555]
[1725656900862,8.1219,123.13,123.08,8.1247]
[1725656901185,8.1219,123.13,123.05,20.3167]
[1725656901186,43.8066,123.16,123.06,8.1261]
[1725656901372,90.6021,123.15,123.01,20.3222]
[1725656901587,8.1275,123.04,122.98,20.3284]
[1725656901876,50.0,123.09,122.93,20.3355]
[1725656902065,8.1307,122.99,122.93,28.4701]
[1725656902278,8.1307,122.99,122.83,50.0]
[1725656902279,45.0,122.98,122.81,12.7786]
[1725656902461,40.3301,122.98,122.87,8.1382]
[1725656902664,45.0,122.97,122.87,28.4847]
[1725656903387,8.1339,122.95,122.87,20.3465]
[1725656903565,45.0,122.94,122.84,20.3516]
[1725656903773,8.136,122.92,122.85,8.1396]
[1725656904092,53.136,122.91,122.86,8.1392]
[1725656904306,45.0,122.91,122.84,28.4918]
[1725656904470,45.0,122.91,122.84,20.3516]
[1725656904670,45.0,122.91,122.86,8.1389]
[1725656904870,45.0,122.91,122.87,8.138]
[1725656905069,45.0,122.91,122.88,8.1379]
[1725656905312,45.0,122.92,122.88,8.1379]
[1725656905677,45.0,122.92,122.79,3.62536088]
[1725656905678,65.3384,122.92,122.82,8.1419]
[1725656905991,45.0,122.92,122.83,8.1413]
[1725656906805,45.0,122.92,122.86,8.1393]
[1725656907130,45.0,122.92,122.82,21.83213995]
[1725656907131,8.132,122.97,122.9,8.1366]
[1725656907401,20.3196,123.04,122.88,20.3446]
[1725656907402,8.1333,122.95,122.88,20.3446]
[1725656907777,8.134,122.94,122.88,28.4825]
[1725656908191,8.1333,122.95,122.89,8.1373]
[1725656908391,8.1333,122.95,122.88,20.3446]
[1725656908392,70.3242,123.01,122.9,8.1365]
[1725656908587,8.1334,122.95,122.9,8.1365]
[1725656909402,8.1325,122.97,122.88,20.3446]
[1725656909603,73.0921,123.03,122.91,20.3393]
[1725656909797,32.4503,123.03,122.88,1.35696384]
[1725656909999,8.131,122.99,122.94,20.335]
[1725656910182,8.131,122.99,122.88,21.35696384]
[1725656910183,8.134,122.95,122.88,8.138]
[1725656910506,8.134,122.95,122.8,40.50820054]
[1725656910507,8.134,122.95,122.89,8.1373]
[1725656910679,20.3268,122.99,122.9,20.3415]
[1725656910880,32.7151,123.02,122.9,20.3415]
[1725656911102,32.7151,123.02,122.87,40.6924]
[1725656911103,12.3932,123.02,122.87,40.6924]
[1725656911303,32.4503,123.03,122.96,8.1324]
[1725656911304,8.1294,123.01,122.96,8.1324]
[1725656911504,32.4503,123.03,122.94,20.3337]
[1725656911706,8.1335,122.95,122.9,20.3402]
[1725656911887,8.1328,122.96,122.9,20.3402]
[1725656912210,20.3242,123.01,122.9,20.3402]
[1725656912211,8.1336,122.95,122.9,20.3402]
[1725656912906,8.1318,122.98,122.93,8.1346]
[1725656913110,73.0915,123.03,122.92,20.337]
[1725656913305,20.0,123.02,122.92,20.337]
[1725656913810,32.4503,123.03,122.94,20.3337]
[1725656914014,379.9,123.06,122.94,20.3337]
[1725656914312,20.3183,123.05,122.94,20.3337]
[1725656914507,8.1332,122.96,122.91,28.4754]
[1725656914888,20.3219,123.02,122.91,20.3395]
[1725656915183,20.3219,123.02,122.87,40.6906]
[1725656915184,20.3305,122.97,122.87,20.3451]
[1725656915598,20.0,122.96,122.84,28.4912]
[1725656915801,20.3351,122.94,122.84,28.4918]
[1725656916105,65.0,122.93,122.81,20.3566]
[1725656916313,20.3399,122.92,122.81,20.3566]
[1725656916607,65.0,122.91,122.81,20.3566]
[1725656916781,8.1374,122.89,122.81,20.3566]
[1725656916987,8.1392,122.87,122.81,28.4991]
[1725656917409,53.1394,122.86,122.81,28.4991]
[1725656917605,8.1394,122.86,122.81,28.4991]
[1725656917789,45.0,122.85,122.82,8.1419]
[1725656917984,40.668,122.95,122.79,2.0008301]
[1725656918187,87.0029,123.02,122.87,8.138]
[1725656918492,50.0,122.93,122.79,2.0008301]
[1725656918696,20.3431,122.9,122.79,2.0008301]
[1725656918881,8.1399,122.86,122.79,2.0008301]
[1725656919084,90.6555,122.99,122.79,2.0008301]
[1725656919397,8.136,122.92,122.86,8.1387]
[1725656919601,8.1361,122.91,122.84,20.3503]
[1725656919910,8.1361,122.91,122.85,8.1399]
[1725656920210,8.1364,122.91,122.86,8.1392]
[1725656921080,20.3321,122.96,122.87,8.1386]
[1725656921284,90.6555,122.99,122.8,40.7155]
[1725656921285,8.1343,122.94,122.89,8.1372]
[1725656921503,12.5129,123.02,122.84,40.7015]
[1725656921504,32.8349,123.02,122.84,40.7015]
[1725656921692,8.13,123.01,122.86,12.8914]
[1725656921896,8.13,123.01,122.94,20.3335]
[1725656922095,8.1299,123.01,122.96,8.1321]
[1725656922286,8.1288,123.02,122.97,8.1319]
[1725656922489,20.3171,123.05,122.95,8.1327]
[1725656922702,50.0,123.04,122.9,28.4779]
[1725656922916,8.1324,122.97,122.91,8.1358]
[1725656923082,8.1327,122.96,122.91,8.1358]
[1725656923288,20.328,122.99,122.9,20.3413]
[1725656923592,8.1327,122.96,122.91,8.1354]
[1725656923998,8.1321,122.97,122.91,8.1354]
[1725656924193,60.9682,123.02,122.86,12.8914]
[1725656924194,20.3223,123.02,122.94,8.134]
[1725656924501,20.3223,123.02,122.92,28.4724]
[1725656924686,20.3223,123.02,122.93,8.1344]
[1725656924895,8.1308,122.99,122.94,8.1336]
[1725656925210,40.6314,123.06,122.96,8.1327]
[1725656925211,8.13,123.01,122.96,8.1327]
[1725656925418,20.3173,123.05,122.97,8.1319]
[1725656925582,8.1294,123.01,122.95,8.1332]
[1725656925783,8.1294,123.01,122.92,40.6764]
[1725656925784,20.3212,123.03,122.91,20.3397]
[1725656925998,50.0,123.04,122.91,28.4756]
[1725656926196,40.6314,123.06,122.88,40.6895]
[1725656926197,40.6314,123.06,122.93,20.3355]
[1725656926396,40.6314,123.06,122.93,28.47]
[1725656926397,8.1314,122.98,122.93,28.47]
[1725656926690,40.6314,123.06,122.88,40.6895]
[1725656926691,20.0,122.97,122.9,20.3409]
[1725656926903,50.0,123.03,122.86,12.8914]
[1725656926904,70.0,123.01,122.86,12.8914]
[1725656927218,20.3271,122.99,122.87,20.3461]
[1725656927716,65.0,122.98,122.87,20.3461]
[1725656927885,8.134,122.94,122.89,8.1372]
[1725656928284,45.0,122.93,122.9,8.1365]
[1725656928492,20.0,122.98,122.91,20.3392]
[1725656928493,8.1325,122.97,122.91,20.3392]
[1725656928727,28.1332,122.96,122.91,28.4746]
[1725656928891,20.0,122.98,122.91,28.4746]
[1725656929219,8.1332,122.96,122.91,28.4746]
[1725656929515,8.1322,122.97,122.91,20.3392]
[1725656929716,20.0,122.96,122.92,8.1352]
[1725656929898,65.0,122.96,122.91,28.475]
[1725656930815,65.0,122.96,122.86,12.8914]
[1725656930816,65.0,122.96,122.89,8.1372]
[1725656931112,73.1333,122.96,122.9,8.1366]
[1725656931317,8.1334,122.95,122.9,8.1366]
[1725656931514,65.0,122.94,122.9,8.1366]
[1725656931817,20.3243,123.01,122.87,40.6908]
[1725656931999,8.132,122.98,122.93,8.1345]
[1725656933125,40.6314,123.06,122.94,20.3344]
[1725656933126,8.1308,122.99,122.94,20.3344]
[1725656933303,8.1314,122.98,122.94,20.3344]
[1725656933502,50.0,123.05,122.94,20.3344]
[1725656933503,8.1321,122.97,122.94,20.3344]
[1725656933710,8.1321,122.97,122.87,40.6908]
[1725656933711,90.6436,123.03,122.91,20.339]
[1725656933919,8.1339,122.95,122.91,20.339]
[1725656934117,8.134,122.94,122.91,20.339]
[1725656934421,44.8164,123.0,122.91,20.339]
[1725656934422,20.3264,123.0,122.91,20.339]
[1725656934608,45.0,122.99,122.91,20.339]
[1725656934792,45.0,122.99,122.91,20.0956268]
[1725656935527,8.1315,122.98,122.93,8.1341]
[1725656935717,53.1322,122.97,122.93,8.1341]
[1725656936217,45.0,122.97,122.93,8.1341]
[1725656936417,20.3213,123.03,122.95,8.1333]
[1725656936625,8.1308,122.99,122.95,8.1331]
[1725656937124,44.8142,123.01,122.9,20.3406]
[1725656937325,24.49,123.01,122.9,28.4766]
[1725656937517,8.1345,122.94,122.9,20.3406]
[1725656937714,24.49,122.96,122.87,20.3458]
[1725656937918,20.3307,122.97,122.87,28.4843]
[1725656937919,8.1355,122.92,122.87,28.4843]
[1725656938127,45.0,122.91,122.87,28.4843]
[1725656939331,8.1368,122.9,122.84,20.3506]
[1725656939524,8.1368,122.9,122.85,8.1398]
[1725656939731,45.0,122.89,122.85,8.1398]
[1725656939911,45.0,122.89,122.84,20.3506]
[1725656940234,45.0,122.89,122.85,8.1399]
[1725656940619,8.1383,122.88,122.84,20.3506]
[1725656940817,45.0,122.87,122.84,20.3506]
[1725656941008,8.1413,122.83,122.79,2.0008301]
[1725656941332,45.0,122.82,122.79,2.0008301]
[1725656941534,8.1433,122.8,122.79,2.0008301]
[1725656941718,74.49,122.85,122.63,10.0]
[1725656941719,13.1464,122.83,122.64,20.3842]
[1725656941922,8.1498,122.71,122.64,20.3842]
[1725656942119,51.86557701,122.82,122.67,20.3794]